bitfinex/quotes_SOLUSD_20251204
["timestamp","ask_amount","ask_price","bid_price","bid_amount"]
[1764876019140,7.21320928,138.64,138.59,7.21515784]
[1764876019337,12.54815031,138.64,138.6,0.65]
[1764876019635,8.16,138.68,138.61,19.76252144]
[1764876019946,12.54815031,138.68,138.62,12.54815031]
[1764876020112,12.54815031,138.67,138.62,0.65]
[1764876020439,8.16,138.69,138.6,7.86499981]
[1764876020440,12.54815031,138.64,138.6,7.86499981]
[1764876020742,12.54815031,138.65,138.61,7.86428955]
[1764876021072,12.54815031,138.66,138.61,7.86428955]
[1764876021238,7.21292556,138.64,138.61,0.65]
[1764876021416,12.54815031,138.65,138.62,0.65]
[1764876021840,12.54815031,138.66,138.62,0.65]
[1764876022844,12.54815031,138.65,138.62,0.65]
[1764876023227,0.3,138.64,138.57,16.308864]
[1764876023422,16.308864,138.62,138.55,10.73903349]
[1764876023623,8.16,138.63,138.55,2.8715545]
[1764876023830,0.3,138.62,138.55,2.8715545]
[1764876024029,12.54815031,138.57,138.55,2.8715545]
[1764876024422,8.18,138.59,138.55,2.8715545]
[1764876024621,12.54815031,138.57,138.55,2.8715545]
[1764876025042,16.608864,138.62,138.55,2.8715545]
[1764876025244,8.48,138.61,138.55,2.8715545]
[1764876025461,12.54815031,138.59,138.56,0.65]
[1764876025631,16.308864,138.64,138.56,0.65]
[1764876025831,12.54815031,138.59,138.56,0.65]
[1764876026079,8.18,138.63,138.55,2.8715545]
[1764876026080,8.48,138.63,138.55,2.8715545]
[1764876026230,12.54815031,138.59,138.55,10.0891421]
[1764876026572,12.54815031,138.59,138.55,2.8715545]
[1764876026738,12.54815031,138.58,138.55,2.8715545]
[1764876026936,12.54815031,138.56,138.55,2.8715545]
[1764876027132,8.18,138.59,138.55,2.8715545]
[1764876027360,7.21604849,138.58,138.55,2.8715545]
[1764876027537,12.54815031,138.56,138.55,2.8715545]
[1764876027940,12.84815031,138.56,138.55,2.8715545]
[1764876028281,0.3,138.56,138.55,2.8715545]
[1764876028598,7.21566421,138.59,138.55,3.5215545]
[1764876029063,25.25448374,138.59,138.55,3.5215545]
[1764876029237,12.54815031,138.57,138.55,2.8715545]
[1764876029573,12.54815031,138.56,138.55,2.8715545]
[1764876029872,12.54815031,138.58,138.55,3.5215545]
[1764876030062,12.54815031,138.56,138.55,2.8715545]
[1764876030637,0.3,138.59,138.55,2.8715545]
[1764876030860,12.54815031,138.56,138.55,2.8715545]
[1764876031068,28.85701431,138.56,138.55,1e-08]
[1764876031369,44.27410437,138.56,138.55,1e-08]
[1764876031672,7.21709006,138.56,138.55,1e-08]
[1764876031876,20.74815031,138.57,138.55,1e-08]
[1764876032043,15.41670167,138.57,138.55,1e-08]
[1764876032238,12.54815031,138.56,138.55,1e-08]
[1764876032446,15.41670167,138.57,138.55,1e-08]
[1764876032850,8.80994492,138.56,138.55,1e-08]
[1764876033051,8.80994492,138.55,138.5,50.0]
[1764876033266,19.76784563,138.51,138.5,50.0]
[1764876033473,7.21969532,138.51,138.5,50.0]
[1764876033649,19.76784563,138.51,138.5,50.0]
[1764876034343,7.21969532,138.51,138.5,50.0]
[1764876034549,19.76784563,138.51,138.5,50.0]
[1764876035055,7.21969532,138.51,138.5,50.0]
[1764876035267,12.54815031,138.51,138.5,50.0]
[1764876036043,20.74815031,138.51,138.5,50.0]
[1764876037253,27.96784563,138.51,138.5,50.0]
[1764876038246,90.92550551,138.51,138.43,0.65]
[1764876038471,12.54815031,138.47,138.43,0.65]
[1764876038677,12.54815031,138.45,138.43,0.65]
[1764876038856,8.2,138.48,138.43,0.65]
[1764876039064,12.54815031,138.46,138.43,0.65]
[1764876039280,8.2,138.48,138.39,0.65]
[1764876039281,19.77189713,138.44,138.39,0.65]
[1764876039594,52.40734064,138.51,138.42,12.54815031]
[1764876039878,12.54815031,138.47,138.42,12.54815031]
[1764876040089,8.2,138.5,138.43,0.65]
[1764876040385,12.54815031,138.48,138.43,13.19815031]
[1764876040883,8.2,138.5,138.44,13.19815031]
[1764876041379,7.22073795,138.49,138.45,0.65]
[1764876041572,19.76888826,138.49,138.45,0.65]
[1764876041780,7.22073795,138.49,138.45,0.65]
[1764876041958,19.76888826,138.49,138.45,0.65]
[1764876042160,12.54815031,138.48,138.45,0.65]
[1764876042489,12.54815031,138.46,138.42,0.65]
[1764876042981,25.27258284,138.49,138.38,34.37460129]
[1764876042982,8.18,138.45,138.38,0.66]
[1764876043168,12.54815031,138.44,138.4,7.8853099]
[1764876043360,8.18,138.45,138.41,0.7]
[1764876043686,20.72815031,138.45,138.41,0.7]
[1764876043878,15.40285322,138.45,138.41,0.7]
[1764876044488,27.95100353,138.45,138.41,0.7]
[1764876044681,33.45991353,138.45,138.42,0.7]
[1764876044873,7.22285322,138.45,138.42,0.7]
[1764876045072,12.54815031,138.44,138.42,0.7]
[1764876045366,7.21656924,138.57,138.43,12.54815031]
[1764876045568,12.54815031,138.46,138.42,0.7]
[1764876045766,8.2,138.48,138.42,0.7]
[1764876045967,12.54815031,138.47,138.42,7.92431301]
[1764876046188,12.54815031,138.47,138.42,20.47246332]
[1764876046380,12.54815031,138.47,138.43,0.7]
[1764876046694,8.2,138.48,138.44,12.54815031]
[1764876046984,21.81370101,138.56,138.47,12.54815031]
[1764876046985,18.04272517,138.56,138.47,12.54815031]
[1764876047286,12.54815031,138.56,138.5,19.76834775]
[1764876047581,12.54815031,138.55,138.5,19.76834775]
[1764876047889,20.74815031,138.56,138.51,0.7]
[1764876048271,12.54815031,138.58,138.52,12.54815031]
[1764876048589,12.54815031,138.56,138.51,12.74815031]
[1764876048788,12.54815031,138.55,138.51,0.2]
[1764876049479,12.54815031,138.52,138.4,13.5481503]
[1764876049682,12.54815031,138.5,138.45,12.54815031]
[1764876049988,12.54815031,138.51,138.45,20.74815031]
[1764876050199,8.2,138.53,138.4,12.54815031]
[1764876050200,12.54815031,138.49,138.43,12.54815031]
[1764876050493,12.54815031,138.47,138.43,0.7]
[1764876050689,8.2,138.5,138.44,0.7]
[1764876050886,12.54815031,138.48,138.44,0.7]
[1764876051187,12.54815031,138.47,138.44,0.7]
[1764876051692,7.22192088,138.47,138.44,0.7]
[1764876052665,12.54815031,138.45,138.4,0.7]
[1764876052866,12.54815031,138.44,138.39,7.92556168]
[1764876053189,12.54815031,138.44,138.4,0.7]
[1764876053701,12.54815031,138.43,138.32,36.14732627]
[1764876053869,18.05707855,138.45,138.36,8.02720366]
[1764876054070,18.05707855,138.45,138.37,12.54815031]
[1764876054372,30.60522886,138.45,138.39,19.77398045]
[1764876054576,30.60522886,138.45,138.39,12.54815031]
[1764876054779,12.54815031,138.43,138.4,0.7]
[1764876055179,12.54815031,138.44,138.4,0.7]
[1764876055382,18.05707855,138.45,138.4,0.7]
[1764876055582,12.54815031,138.44,138.4,0.7]
[1764876055891,8.2,138.46,138.4,0.7]
[1764876056104,12.54815031,138.44,138.4,0.7]
[1764876056993,12.54815031,138.45,138.4,7.92512568]
[1764876057168,8.2,138.46,138.4,7.92512568]
[1764876057373,12.54815031,138.45,138.41,0.7]
[1764876057690,19.77149616,138.44,138.41,0.7]
[1764876057888,19.77113174,138.45,138.41,0.7]
[1764876058084,7.22298143,138.45,138.41,7.92469565]
[1764876058286,19.77113174,138.45,138.41,0.7]
[1764876058490,19.77113174,138.45,138.42,0.7]
[1764876059290,7.22298143,138.45,138.42,0.7]
[1764876059593,19.77113174,138.45,138.42,0.7]
[1764876059993,7.22298143,138.45,138.42,0.7]
[1764876060199,7.22298143,138.45,138.38,0.7]
[1764876060200,12.54815031,138.43,138.38,0.7]
[1764876060397,12.54815031,138.43,138.36,0.1]
[1764876060398,7.24528783,138.39,138.36,0.1]
[1764876060603,7.24528783,138.39,138.36,0.8]
[1764876060898,7.24528783,138.4,138.36,0.8]
[1764876061123,8.18,138.39,138.36,0.1]
[1764876061279,7.24528783,138.37,138.36,0.1]
[1764876061480,8.18,138.39,138.36,0.1]
[1764876061686,7.24528783,138.37,138.36,0.1]
[1764876062196,7.74528783,138.37,138.36,0.1]
[1764876062804,7.22647781,138.38,138.36,0.1]
[1764876062998,7.22647781,138.38,138.21,4.76089728]
[1764876062999,8.80994492,138.36,138.21,4.76089728]
[1764876063206,15.94528783,138.37,138.21,4.76089728]
[1764876063207,8.2,138.37,138.29,7.94528783]
[1764876063418,7.24528783,138.34,138.29,0.7]
[1764876063610,7.22908985,138.33,138.29,0.7]
[1764876063921,7.22908985,138.33,138.25,34.39141422]
[1764876063922,7.24528783,138.31,138.26,0.7]
[1764876064088,7.24528783,138.31,138.26,7.93267888]
[1764876064293,25.30181449,138.33,138.27,0.7]
[1764876064513,7.24528783,138.3,138.27,0.7]
[1764876064824,8.2,138.3,138.23,7.93386292]
[1764876065291,7.24528783,138.29,138.24,7.9333869]
[1764876065491,7.22875953,138.34,138.24,49.57202947]
[1764876065704,0.4,138.33,138.25,0.7]
[1764876065906,7.24528783,138.31,138.25,15.17837125]
[1764876066150,15.82804481,138.35,138.28,7.24528783]
[1764876066320,15.82804481,138.35,138.26,0.7]
[1764876066614,15.82804481,138.35,138.28,7.24528783]
[1764876066806,7.24528783,138.33,138.28,7.24528783]
[1764876067006,22.67333264,138.35,138.3,7.24528783]
[1764876067187,7.24528783,138.32,138.26,0.7]
[1764876067392,6.74528783,138.32,138.26,0.7]
[1764876067798,6.74528783,138.32,138.27,14.47743936]
[1764876067799,13.97506748,138.32,138.27,14.47743936]
[1764876067993,7.22923767,138.33,138.27,7.23215153]
[1764876068190,7.24528783,138.33,138.28,0.7]
[1764876068419,7.22869048,138.34,138.28,0.7]
[1764876068628,7.22869048,138.34,138.29,7.24528783]
[1764876068835,7.24528783,138.32,138.26,7.93234809]
[1764876069124,17.00994492,138.31,138.2,18.78917649]
[1764876069321,7.24528783,138.26,138.21,0.7]
[1764876069523,9.20994492,138.3,138.22,7.24528783]
[1764876069732,7.23118085,138.29,138.24,14.47901462]
[1764876069917,15.44528783,138.32,138.27,7.24528783]
[1764876070115,8.6,138.32,138.25,7.94528783]
[1764876070315,8.2,138.32,138.26,0.7]
[1764876070500,0.4,138.35,138.26,0.7]
[1764876070703,8.80994492,138.32,138.23,7.23425047]
[1764876071011,9.20994492,138.32,138.24,0.7]
[1764876071324,24.508864,138.33,138.24,15.17906437]
[1764876071325,9.20994492,138.31,138.24,15.17906437]
[1764876071527,0.4,138.33,138.24,7.93377654]
[1764876071830,7.23065798,138.3,138.26,7.24528783]
[1764876072218,7.23065798,138.3,138.19,2.91096067]
[1764876072219,8.2,138.29,138.19,2.91096067]
[1764876072433,7.24528783,138.28,138.23,7.94528783]
[1764876072604,8.80994492,138.29,138.23,0.7]
[1764876072802,8.22,138.28,138.23,0.7]
[1764876073010,8.22,138.28,138.23,0.71]
[1764876073504,8.22,138.28,138.25,7.23316214]
[1764876073704,14.47594581,138.3,138.24,7.23379629]
[1764876073906,14.47594581,138.3,138.24,14.47908412]
[1764876074105,14.47594581,138.3,138.24,7.23379629]
[1764876074302,7.23065798,138.3,138.25,0.71]
[1764876074505,14.47594581,138.3,138.25,7.95528783]
[1764876074732,14.47594581,138.3,138.23,7.23422799]
[1764876074733,7.64528783,138.29,138.23,7.23422799]
[1764876074911,7.24528783,138.29,138.25,0.71]
[1764876075310,25.30730295,138.3,138.2,18.08865044]
[1764876075518,25.30730295,138.3,138.25,0.71]
[1764876075728,7.23065798,138.3,138.25,7.95528783]
[1764876075940,7.23065798,138.3,138.26,7.95528783]
[1764876076117,15.44528783,138.34,138.26,0.71]
[1764876076318,7.24528783,138.33,138.27,0.71]
[1764876076522,15.44528783,138.34,138.29,7.24528783]
[1764876076928,8.2,138.34,138.3,0.71]
[1764876077235,15.44528783,138.34,138.28,0.71]
[1764876077407,8.80994492,138.37,138.3,7.24528783]
[1764876077610,16.05523275,138.35,138.26,0.71]
[1764876077843,7.24528783,138.32,138.26,0.71]
[1764876078046,8.80994492,138.3,138.19,3.62096067]
[1764876078215,8.80994492,138.24,138.19,2.91096067]
[1764876078411,8.2,138.23,138.19,2.91096067]
[1764876078608,8.2,138.23,138.19,3.62096067]
[1764876078812,8.22,138.26,138.21,7.24528783]
[1764876079238,0.4,138.33,138.24,7.24528783]
[1764876079412,36.13456407,138.38,138.29,7.24528783]
[1764876079413,36.53456407,138.38,138.29,7.24528783]
[1764876079612,0.99999999,138.4,138.29,7.95528783]
[1764876079613,7.24528783,138.34,138.29,7.95528783]
[1764876079814,7.24528783,138.35,138.3,7.23065798]
[1764876080036,0.4,138.43,138.34,7.24528783]
[1764876080244,7.24528783,138.43,138.37,7.24528783]
[1764876080412,0.4,138.43,138.31,0.71]
[1764876080738,0.4,138.47,138.39,7.24528783]
[1764876080953,8.22,138.47,138.41,7.24528783]
[1764876081115,15.46528783,138.47,138.41,7.24528783]
[1764876081310,0.99999999,138.54,138.35,16.308864]
[1764876081311,7.21761097,138.55,138.43,7.24528783]
[1764876081526,29.03252233,138.55,138.42,0.71]
[1764876081814,7.24528783,138.56,138.5,14.46550443]
[1764876081815,7.21719927,138.56,138.5,14.46550443]
[1764876082012,7.21719927,138.56,138.52,7.24528783]
[1764876082232,14.4624871,138.56,138.5,15.17550443]
[1764876082448,7.24528783,138.53,138.47,14.46663965]
[1764876082616,7.24528783,138.5,138.46,0.71]
[1764876082822,7.24528783,138.47,138.43,0.71]
[1764876083038,8.80994492,138.51,138.43,15.17912585]
[1764876083222,8.80994492,138.51,138.44,7.24528783]
[1764876083223,7.24528783,138.5,138.44,7.24528783]
[1764876083424,7.24528783,138.48,138.44,0.71]
[1764876083742,8.22,138.51,138.44,7.93303975]
[1764876083743,7.2202166,138.5,138.44,7.93303975]
[1764876083915,8.22,138.51,138.44,7.93303975]
[1764876084117,7.24528783,138.49,138.45,0.71]
[1764876084325,7.24528783,138.46,138.33,0.99999999]
[1764876084618,7.24528783,138.46,138.29,21.36251944]
[1764876084619,7.24528783,138.41,138.35,7.24528783]
[1764876084831,7.24528783,138.41,138.34,0.71]
[1764876084832,0.4,138.49,138.39,14.47093929]
[1764876085140,0.4,138.49,138.43,7.24528783]
[1764876085141,7.24528783,138.49,138.43,7.24528783]
[1764876085539,7.24528783,138.47,138.43,0.71]
[1764876085723,7.24528783,138.45,138.41,0.71]
[1764876085923,7.24528783,138.45,138.4,7.22500393]
[1764876085924,7.24528783,138.45,138.4,7.93536924]
[1764876086121,7.24528783,138.44,138.41,0.71]
[1764876086323,7.24528783,138.42,138.38,0.71]
[1764876086549,7.24528783,138.45,138.39,0.71]
[1764876086719,7.24528783,138.49,138.41,7.22484283]
[1764876087052,7.24528783,138.43,138.39,7.9358845]
[1764876087216,7.24528783,138.42,138.37,7.93699016]
[1764876087415,7.24528783,138.38,138.32,18.78391589]
[1764876087645,8.24,138.41,138.33,15.1839722]
[1764876087646,7.24528783,138.39,138.33,15.1839722]
[1764876087819,7.22587925,138.4,138.33,0.71]
[1764876088020,7.24528783,138.39,138.34,0.71]
[1764876088218,7.24528783,138.37,138.31,26.03051349]
[1764876088620,7.24528783,138.35,138.31,0.71]
[1764876088817,8.80994492,138.39,138.31,7.95528783]
[1764876089019,7.24528783,138.37,138.31,7.95528783]
[1764876089234,25.28946306,138.4,138.32,0.71]
[1764876089431,7.24528783,138.36,138.32,0.71]
[1764876089633,7.24528783,138.35,138.29,18.07772701]
[1764876089836,7.24528783,138.32,138.27,0.71]
[1764876090049,23.55415183,138.4,138.27,0.71]
[1764876090050,16.308864,138.4,138.28,0.71]
[1764876090230,7.24528783,138.35,138.3,7.23061323]
[1764876090537,7.24528783,138.32,138.28,7.94125685]
[1764876091025,7.24528783,138.33,138.29,7.94115062]
[1764876091220,7.24528783,138.35,138.3,7.23046061]
[1764876091422,25.29084471,138.39,138.31,7.24528783]
[1764876091626,7.24528783,138.37,138.32,0.71]
[1764876091846,7.24528783,138.35,138.32,0.71]
[1764876092021,7.24528783,138.34,138.3,7.23056601]
[1764876092225,8.64,138.38,138.31,0.71]
[1764876092446,8.24,138.38,138.34,7.24528783]
[1764876092753,8.24,138.38,138.32,25.30358808]
[1764876092754,7.22386765,138.43,138.36,7.24528783]
[1764876092952,7.22386765,138.43,138.32,25.30358808]
[1764876092953,8.24,138.42,138.33,0.71]
[1764876093156,15.48528783,138.42,138.37,7.24528783]
[1764876093348,7.24528783,138.42,138.37,7.24528783]
[1764876093660,7.24528783,138.42,138.38,0.71]
[1764876093822,15.46386765,138.43,138.38,0.71]
[1764876094020,22.70915548,138.43,138.38,7.93634261]
[1764876094247,14.46915548,138.43,138.38,7.93634261]
[1764876094644,15.46346996,138.44,138.39,0.71]
[1764876094849,7.24528783,138.43,138.39,0.71]
[1764876095164,7.24528783,138.43,138.38,7.22634261]
[1764876095368,7.24528783,138.42,138.38,7.22634261]
[1764876095649,0.4,138.47,138.38,32.53794489]
[1764876095853,0.4,138.47,138.39,7.93559532]
[1764876095854,7.24528783,138.44,138.39,7.93559532]
[1764876096048,7.22333508,138.45,138.39,7.93559532]
[1764876096226,7.22237831,138.46,138.39,33.24577223]
[1764876096548,7.24528783,138.46,138.4,7.95528783]
[1764876096776,7.24528783,138.45,138.4,0.71]
[1764876096929,7.24528783,138.42,138.38,7.22645962]
[1764876097239,8.22,138.44,138.4,7.24528783]
[1764876097446,8.22,138.44,138.39,7.22584327]
[1764876097447,15.46528783,138.44,138.39,7.22584327]
[1764876097649,8.22,138.44,138.4,7.95528783]
[1764876097832,8.22,138.44,138.41,7.22491149]
[1764876098034,8.22,138.44,138.41,7.93491149]
[1764876098272,7.24528783,138.43,138.37,18.06739883]
[1764876098559,7.24528783,138.43,138.38,7.22643797]
[1764876098560,0.4,138.43,138.38,7.22643797]
[1764876098734,7.24528783,138.43,138.37,7.24528783]
[1764876099057,9.20994492,138.43,138.36,0.71]
[1764876099222,33.50189364,138.44,138.36,7.95528783]
[1764876099223,15.46528783,138.42,138.36,7.95528783]
[1764876099428,8.22,138.43,138.39,7.24528783]
[1764876099648,8.22,138.43,138.4,0.71]
[1764876099965,15.44186436,138.47,138.42,14.46967736]
[1764876100165,7.24528783,138.45,138.4,0.71]
[1764876100465,7.24528783,138.46,138.4,7.95528783]
[1764876100757,8.22,138.46,138.41,7.93487852]
[1764876100961,15.46528783,138.46,138.41,7.93487852]
[1764876101664,8.22,138.46,138.41,15.18016635]
[1764876101859,8.22,138.46,138.42,7.9340929]
[1764876102479,8.22,138.46,138.42,15.17938073]
[1764876102786,7.24528783,138.48,138.43,0.72]
[1764876103060,16.03016152,138.5,138.43,7.96528783]
[1764876103251,8.22,138.48,138.43,7.96528783]
[1764876103762,8.22,138.48,138.44,0.67]
[1764876103967,8.22,138.48,138.44,15.13822191]
[1764876104166,8.22,138.48,138.45,0.67]
[1764876104546,8.22,138.48,138.44,7.22293408]
[1764876104754,8.22,138.48,138.44,7.89293408]
[1764876104952,8.22,138.48,138.44,15.13822191]
[1764876105355,8.22,138.48,138.44,7.89293408]
[1764876105544,8.22,138.48,138.44,14.46822191]
[1764876105745,8.22,138.48,138.45,0.67]
[1764876105940,7.22040236,138.5,138.45,15.13760136]
[1764876106161,14.46569019,138.5,138.45,15.13760136]
[1764876106357,7.24528783,138.47,138.42,0.67]
[1764876106545,7.24528783,138.48,138.42,7.91528783]
[1764876106740,7.22040236,138.5,138.43,7.24528783]
[1764876106960,7.24528783,138.49,138.43,7.91528783]
[1764876107245,7.24528783,138.49,138.44,0.67]
[1764876107660,7.24528783,138.49,138.45,7.22271731]
[1764876107864,14.46569019,138.5,138.46,0.67]
[1764876108241,14.46569019,138.5,138.45,7.22271731]
[1764876108573,14.46569019,138.5,138.45,7.89271731]
[1764876108760,7.24528783,138.47,138.42,7.22403369]
[1764876109069,7.22040236,138.5,138.45,7.22243234]
[1764876109365,15.46528783,138.49,138.45,7.22243234]
[1764876109669,7.24528783,138.51,138.46,7.89191618]
[1764876109872,7.24528783,138.5,138.46,7.89191618]
[1764876110070,14.46555836,138.5,138.45,7.22275749]
[1764876110274,14.46555836,138.5,138.45,7.89275749]
[1764876110664,14.46555836,138.5,138.46,7.22228151]
[1764876110973,14.46555836,138.5,138.46,7.89228151]
[1764876111145,7.24528783,138.47,138.41,7.91528783]
[1764876111341,8.80994492,138.48,138.41,0.67]
[1764876111545,7.24528783,138.46,138.41,7.91528783]
[1764876111857,7.24528783,138.46,138.41,0.67]
[1764876112056,7.24528783,138.46,138.42,0.67]
[1764876112253,7.24528783,138.46,138.38,16.308864]
[1764876112254,7.24528783,138.43,138.38,0.67]
[1764876112460,7.24528783,138.42,138.38,0.67]
[1764876113560,14.46995115,138.42,138.38,0.67]
[1764876113777,14.46995115,138.42,138.34,8.2]
[1764876113778,7.24528783,138.39,138.34,7.22835914]
[1764876113972,0.4,138.41,138.35,7.22799551]
[1764876113973,7.24528783,138.38,138.35,7.22799551]
[1764876114151,7.24528783,138.39,138.35,7.22799551]
[1764876114573,7.24528783,138.39,138.36,0.67]
[1764876114769,7.24528783,138.38,138.34,0.67]
[1764876115060,7.24528783,138.35,138.3,7.23045693]
[1764876115256,7.24528783,138.34,138.3,7.23045693]
[1764876115568,14.47394379,138.34,138.31,0.67]
[1764876115743,7.24528783,138.32,138.28,0.67]
[1764876115942,7.22865596,138.34,138.27,7.24528783]
[1764876116160,7.24528783,138.33,138.29,0.67]
[1764876116365,7.22865596,138.34,138.29,0.67]
[1764876116570,7.24528783,138.33,138.29,0.67]
[1764876117273,7.24528783,138.33,138.3,7.23055062]
[1764876117577,8.2,138.33,138.3,0.67]
[1764876117793,8.2,138.33,138.28,7.23153288]
[1764876117794,7.24528783,138.32,138.28,7.23153288]
[1764876118090,7.24528783,138.32,138.24,16.308864]
[1764876118091,7.24528783,138.3,138.25,0.67]
[1764876118283,7.24528783,138.3,138.26,7.23242785]
[1764876118503,7.22921683,138.33,138.26,7.24528783]
[1764876118787,9.20994492,138.33,138.25,0.67]
[1764876118953,7.24528783,138.29,138.25,7.90321579]
[1764876119152,14.4766823,138.29,138.25,0.67]
[1764876119348,14.4766823,138.29,138.22,7.90451046]
[1764876119349,7.24528783,138.27,138.22,7.90451046]
[1764876119977,25.70934659,138.29,138.19,2.91096067]
[1764876119978,7.24528783,138.23,138.19,2.91096067]
[1764876120277,7.24528783,138.2,138.19,2.91096067]
[1764876120501,7.24528783,138.2,138.19,1e-08]
[1764876120502,8.80994492,138.2,138.19,1e-08]
[1764876120657,34.10840204,138.2,138.19,1e-08]
[1764876120850,17.02994492,138.2,138.19,1e-08]
[1764876121050,15.45589001,138.2,138.19,1e-08]
[1764876121373,24.26583493,138.2,138.19,1e-08]
[1764876121556,49.56429205,138.2,138.19,1e-08]
[1764876121755,36.91506349,138.2,138.19,1e-08]
[1764876121960,16.04583493,138.2,138.19,1e-08]
[1764876122160,24.26583493,138.2,138.19,1e-08]
[1764876122364,0.99999999,138.29,138.19,1e-08]
[1764876122566,8.22,138.28,138.19,0.67000001]
[1764876122773,20.86922856,138.28,138.19,0.67000001]
[1764876122975,8.22,138.28,138.21,12.64922856]
[1764876123187,15.4521196,138.28,138.22,0.67]
[1764876123362,15.4521196,138.28,138.19,1e-08]
[1764876123363,12.64922856,138.25,138.19,13.31922857]
[1764876123891,7.23119156,138.29,138.2,0.67]
[1764876124063,4.53232181,138.36,138.25,12.64922856]
[1764876124256,12.64922856,138.33,138.27,12.64922856]
[1764876124455,28.09675096,138.36,138.28,0.67]
[1764876124657,8.22,138.36,138.32,12.64922856]
[1764876124896,7.22230247,138.46,138.35,12.64922856]
[1764876125060,21.71002641,138.47,138.39,12.64922856]
[1764876125061,7.22283081,138.45,138.39,12.64922856]
[1764876125386,21.71002641,138.47,138.4,12.64922856]
[1764876125387,19.87164171,138.46,138.4,12.64922856]
[1764876125694,12.64922856,138.48,138.41,12.64922856]
[1764876125981,36.08682016,138.56,138.39,16.978864]
[1764876126185,12.64922856,138.49,138.39,16.978864]
[1764876126372,8.22,138.53,138.46,12.64922856]
[1764876126567,8.22,138.53,138.47,12.64922856]
[1764876126568,33.48528548,138.53,138.47,12.64922856]
[1764876126770,33.48528548,138.53,138.4,21.53922856]
[1764876126771,7.21865299,138.53,138.41,0.67]
[1764876126985,12.64922856,138.52,138.46,12.64922856]
[1764876127291,7.21865299,138.53,138.47,12.64922856]
[1764876127496,12.64922856,138.5,138.44,13.31922856]
[1764876127663,12.64922856,138.46,138.4,0.67]
[1764876127863,8.80994492,138.49,138.42,0.67]
[1764876128078,12.64922856,138.47,138.42,0.67]
[1764876128397,8.22,138.51,138.46,12.64922856]
[1764876128686,12.64922856,138.5,138.44,12.64922856]
[1764876128869,20.86922856,138.51,138.45,13.31922856]
[1764876129075,12.64922856,138.5,138.46,0.67]
[1764876129276,7.22073795,138.49,138.46,0.67]
[1764876129486,28.08902088,138.51,138.46,0.67]
[1764876129664,12.64922856,138.55,138.49,12.64922856]
[1764876129865,12.64922856,138.55,138.5,12.64922856]
[1764876130085,8.22,138.56,138.49,12.64922856]
[1764876130289,12.64922856,138.55,138.46,25.27802124]
[1764876130464,12.64922856,138.53,138.48,0.67]
[1764876130664,8.22,138.56,138.48,0.67]
[1764876130665,12.64922856,138.54,138.49,12.64922856]
[1764876130888,8.22,138.56,138.48,0.67]
[1764876130889,12.64922856,138.55,138.48,0.67]
[1764876131095,8.22,138.56,138.48,13.31922856]
[1764876131389,12.64922856,138.52,138.48,0.67]
[1764876131591,4.96918422,138.62,138.48,0.67]
[1764876131592,7.21500721,138.6,138.51,12.64922856]
[1764876131768,7.21500721,138.6,138.54,12.64922856]
[1764876132165,7.21500721,138.6,138.52,0.67]
[1764876132166,12.64922856,138.56,138.52,0.67]
[1764876132392,7.21500721,138.6,138.5,0.67]
[1764876132393,12.70461102,138.54,138.5,0.67]
[1764876132608,12.70461102,138.55,138.5,0.67]
[1764876132763,16.308864,138.59,138.5,0.67]
[1764876132963,12.70461102,138.54,138.5,0.67]
[1764876133170,7.21917412,138.52,138.5,0.67]
[1764876133577,7.21917412,138.52,138.47,0.66]
[1764876133781,19.92378514,138.52,138.48,0.66]
[1764876133977,19.92378514,138.52,138.34,75.0]
[1764876133978,25.26710943,138.52,138.45,0.66]
[1764876134177,12.70461102,138.47,138.41,28.14948982]
[1764876134492,12.70461102,138.46,138.42,0.66]
[1764876134692,24.528864,138.5,138.42,0.66]
[1764876134894,12.70461102,138.47,138.42,0.66]
[1764876135481,19.92691349,138.46,138.42,0.66]
[1764876136070,7.22230247,138.46,138.42,0.66]
[1764876136272,19.92691349,138.46,138.42,0.66]
[1764876136796,19.92627633,138.48,138.42,7.88434747]
[1764876137096,12.70461102,138.47,138.42,7.88434747]
[1764876137300,1.19999999,138.61,138.44,12.70461102]